Cogmind - Beta 15 @@@ ROGUE MODE // 2025.06.11 @ 06:40:31 Player: CL-1C0 Result: Self-destructed Performance ------------- Evolutions (1) 500 Regions Visited (2) 400 Robots Destroyed (0) 0 Value Destroyed (0) 0 Prototype IDs (0) 0 Alien Tech Used (0) 0 Bonus (200) 200 TOTAL SCORE: 1100 Bonus ------- Pacifist 200 Cogmind --------- Core Integrity 257/400 Matter 284/300 Energy 100/100 System Corruption 0% Temperature Cool (0) Movement Core (50) Location -9/Materials Parts ------- > --- POWER (1) -------- (None) > --- PROPULSION (3) --- Light Treads > --- UTILITY (3) ------ Visual Processing Unit Visual Processing Unit > --- WEAPON (2) ------- (None) > --- INVENTORY (5) ---- (None) Peak State ------------ > --- POWER ------------ (None) > --- PROPULSION ------- Light Treads > --- UTILITY ---------- Visual Processing Unit Visual Processing Unit > --- WEAPON ----------- (None) > --- INVENTORY -------- (None) [Rating: 5] Favorites ----------- Power None Propulsion Light Treads Treads Light Treads Utility Visual Processing Unit Processor Visual Processing Unit Weapon None Build | -11 -10 -9 ------- Run | Yrd Mat Mat Slots Evolved 2 | . . 2 Power . | . . . Propulsion 1 | . . 1 Utility 1 | . . 1 Weapon . | . . . Parts Attached 3 | 1 2 . Power . | . . . Engine . | . . . Core . | . . . Reactor . | . . . Propulsion 1 | 1 . . Treads 1 | 1 . . Leg . | . . . Wheel . | . . . Hover . | . . . Flight . | . . . Utility 2 | . 2 . Device . | . . . Storage . | . . . Processor 2 | . 2 . Hackware . | . . . Protection . | . . . Artifact . | . . . Weapon . | . . . Energy Gun . | . . . Energy Cannon . | . . . Ballistic Gun . | . . . Ballistic Cannon . | . . . Launcher . | . . . Special Weapon . | . . . Impact Weapon . | . . . Slashing Weapon . | . . . Piercing Weapon . | . . . Special Melee Weapon . | . . . Unidentified Prototypes . | . . . Parts Lost . | . . . Power . | . . . Propulsion . | . . . Utility . | . . . Weapon . | . . . Highest Loss Streak . | . . . To Critical Strikes . | . . . Average Backups . | 4 . . Power . | 1 . . Propulsion . | 2 . . Utility . | . . . Weapon . | 1 . . Tool/Special . | . . . Unused Backups . | . . . Power . | . . . Propulsion . | . . . Utility . | . . . Weapon . | . . . Tool/Special . | . . . Average Slot Usage (%) 24 | . 14 33 Treads 12 | . 14 11 Processor 12 | . . 22 Peak Build Rating 5 | 1 5 5 Average Rating 3 | 1 1 5 On Entrance 4 | 6 1 5 Naked Turns . | . . . Heaviest Build . | . . . Greatest Support 20 | 3 20 3 Greatest Overweight (x) . | . . . Average Overweight (x) . | . . . Largest Inventory Capacity 5 | 5 5 5 Average Capacity 5 | 5 5 5 Most Carried 4 | 4 . . Average Carried . | 2 . . Final Capacity 5 | 5 5 5 Final Carried . | . . . Class Distribution -------------------- 100% | Mutant Dominant Class ---------------- Mutant | -10/Materials Mutant | -9/Materials Resources | -11 -10 -9 ----------- Run | Yrd Mat Mat Matter Collected 207 | 178 . 29 Remotely . | . . . Salvage Created . | . . . Parts . | . . . Haulers Intercepted . | . . . Recyclers Shooed . | . . . Parts Field Recycled . | . . . Retrieved Matter . | . . . Parts Self-Destructed . | . . . Prevented . | . . . Kills | -11 -10 -9 ------- Run | Yrd Mat Mat Combat Hostiles Destroyed . | . . . Classes Destroyed . | . . . Best Kill Streak . | . . . Combat Bots Only . | . . . Max Kills in Single Turn . | . . . Gunslinging . | . . . Exploded . | . . . Melee . | . . . Uniques/NPCs Destroyed . | . . . Combat | -11 -10 -9 -------- Run | Yrd Mat Mat Hostile Shots Fired 27 | . . 27 Missed 8 | . . 8 Hits 19 | . . 19 Projectile 19 | . . 19 Damage Taken 253 | . . 253 Core 143 | . . 143 Absorbed by Shields . | . . . Core Remaining (%) 100 | 100 100 . Volleys Fired . | . . . Largest . | . . . Hottest . | . . . Shots Fired . | . . . Gun . | . . . Cannon . | . . . Launcher . | . . . Special . | . . . Kinetic . | . . . Thermal . | . . . Explosive . | . . . Electromagnetic . | . . . Robot Hit Streak . | . . . Robot Miss Streak . | . . . Penetration Max . | . . . Secondary Targets . | . . . Shots Hit Robots . | . . . Core Hits . | . . . Critical Kills . | . . . Critical Parts Destroyed . | . . . Critical Strikes . | . . . Melee Attacks . | . . . Impact . | . . . Slashing . | . . . Piercing . | . . . Sneak Attacks . | . . . Combat Hostiles . | . . . Follow-up Attacks . | . . . Damage Inflicted . | . . . Guns . | . . . Cannons . | . . . Explosions . | . . . Melee . | . . . Ramming . | . . . Kinetic . | . . . Thermal . | . . . Explosive . | . . . Electromagnetic . | . . . Impact . | . . . Slashing . | . . . Piercing . | . . . Highest Corruption . | . . . Average Corruption . | . . . Corruption Purged . | . . . Corruption Blocked . | . . . Overload Shots . | . . . Overflow Damage . | . . . Projectiles . | . . . Explosions . | . . . Melee . | . . . Knockbacks . | . . . Impact . | . . . Kinetic . | . . . Secondary . | . . . Self-Inflicted Damage . | . . . Shots . | . . . Rammed 2 | . 2 . Targets Rammed 2 | . 2 . Kicked . | . . . Crushed . | . . . Highest Temperature . | . . . Average Temperature . | . . . Received Heat Transfer 138 | . . 138 Siege Activations . | . . . Martial Activations . | . . . Shielding Activations . | . . . Robots Disrupted . | . . . Combat Hostiles . | . . . Robots Corrupted . | . . . Combat Hostiles . | . . . Parts Fried . | . . . Impact Corruptions . | . . . Robots Melted . | . . . Combat Hostiles . | . . . Parts Melted . | . . . Heat Transferred . | . . . Parts Sabotaged . | . . . Parts Stolen . | . . . Parts Stripped . | . . . Power Chain Reactions . | . . . Alert | -11 -10 -9 ------- Run | Yrd Mat Mat Maximum Alert Level . | . . . Low Security (%) 100 | 100 100 100 Level 1 . | . . . Level 2 . | . . . Level 3 . | . . . Level 4 . | . . . Level 5 . | . . . High Security . | . . . Max Security . | . . . Peak Influence 31 | . . 31 Initial . | . . . Average 11 | . . 19 Influence Increases 47 | . . 47 Successful Hack 32 | . . 32 Partial Spotted 15 | . . 15 Influence Decreases 47 | . . 47 Time Decay 40 | . . 40 Lost Ally 7 | . . 7 Squads Dispatched 1 | . . 1 Investigation 1 | . . 1 Extermination . | . . . Reinforcement . | . . . Assault . | . . . Garrison . | . . . Intercept . | . . . Searches Triggered . | . . . Construction Impeded . | . . . Haulers Reinforced . | . . . Active Scanning Responses . | . . . Cargo Convoy Interrupts . | . . . Stealth | -11 -10 -9 --------- Run | Yrd Mat Mat Distress Signals 2 | . . 2 Communications Jammed . | . . . Distress Signals . | . . . Times Spotted 12 | . 1 11 Peak Tracking Total 11 | . 1 11 Tactical Retreats . | . . . Traps | -11 -10 -9 ------- Run | Yrd Mat Mat Traps Triggered . | . . . Indirectly . | . . . Trap Hack Attempts . | . . . Triggered . | . . . Disarmed . | . . . Reprogrammed . | . . . Reused . | . . . Traps Extracted . | . . . Installed . | . . . Triggered . | . . . Machines | -11 -10 -9 ---------- Run | Yrd Mat Mat Machines Disabled . | . . . Max in Single Turn . | . . . Machines Repaired . | . . . Machines Dismantled . | . . . Machines Sabotaged . | . . . Overloaded Fab Kills . | . . . Hacking | -11 -10 -9 --------- Run | Yrd Mat Mat Machines Accessed 2 | . . 2 Terminals 2 | . . 2 Fabricators . | . . . Repair Stations . | . . . Recycling Units . | . . . Scanalyzers . | . . . Garrison Access . | . . . Total Hacks 3 | . . 3 Successful 2 | . . 2 Failed 1 | . . 1 Catastrophic . | . . . Database Lockouts . | . . . Manual 2 | . . 2 Terminals 3 | . . 3 Fabricators . | . . . Repair Stations . | . . . Recycling Units . | . . . Scanalyzers . | . . . Garrison Access . | . . . Terminal Hacks 1 | . . 1 Level Access Points 1 | . . 1 Fabricator Hacks . | . . . Repair Station Hacks . | . . . Recycling Unit Hacks . | . . . Scanalyzer . | . . . Garrison Access Hacks . | . . . Unauthorized Hacks 1 | . . 1 Terminals 1 | . . 1 Assimilate 1 | . . 1 Fabricators . | . . . Repair Stations . | . . . Recycling Units . | . . . Scanalyzers . | . . . Garrison Access . | . . . Data Cores Recovered . | . . . Used . | . . . Hacking Detections 1 | . . 1 Full Trace Events . | . . . Feedback Events . | . . . Feedback Blocked . | . . . Robot Schematics Acquired . | . . . Robots Built . | . . . Authchips . | . . . Time . | . . . Total Robot Build Rating . | . . . Part Schematics Acquired . | . . . Parts Built . | . . . Authchips . | . . . Time . | . . . Total Part Build Rating . | . . . Parts Repaired . | . . . Time . | . . . Parts Recycled . | . . . Recycled Matter . | . . . Retrieved Matter . | . . . Retrieved Components . | . . . Parts Scanalyzed . | . . . Part Schematics Acquired . | . . . Parts Damaged . | . . . Bothacking | -11 -10 -9 ------------ Run | Yrd Mat Mat Used RIF Installer . | . . . Robots Hacked . | . . . Non-combat . | . . . Combat . | . . . Robot Hacks Applied . | . . . Relay Couplers Released . | . . . Fabnet Peak Effective % . | . . . Robots Rewired . | . . . Allies Hacked . | . . . Hacks Repelled . | . . . Allies | -11 -10 -9 -------- Run | Yrd Mat Mat Total Allies 1 | . . 1 Largest Group 1 | . . 1 Highest-Rated Group 10 | . . 10 Highest-Rated Ally 10 | . . 10 Total Orders . | . . . Ally Attacks . | . . . Total Damage . | . . . Kills . | . . . Allies Corrupted . | . . . Allies Melted . | . . . Intel | -11 -10 -9 ------- Run | Yrd Mat Mat Active Infowar (turns) 96 | . 6 90 Optics 96 | . 6 90 Robot Analysis Total . | . . . Derelict Logs Recovered . | . . . Drone Launches . | . . . Drone Recoveries . | . . . Exploration | -11 -10 -9 ------------- Run | Yrd Mat Mat Turns Passed 158 | 4 64 90 Spaces Moved 241 | 1 100 140 Core 234 | 1 93 140 Treads 7 | . 7 . Legs . | . . . Wheels . | . . . Hover . | . . . Flight . | . . . Fastest Speed 50 | 50 50 50 Average Speed 53 | 50 57 50 Slowest Speed 160 | 50 160 50 Overloaded Moves . | . . . Propulsion Burnouts . | . . . Robots Hopped . | . . . Potential Cave-ins . | . . . Cave-ins Triggered . | . . . Exploration Rate (%) 11 | 2 22 11 Regions Visited 2 Branch Regions . Pre-discovered Areas . | . . . Known Exits Taken . | . . . Unknown Exits Taken 2 | 1 1 . Scrap Searched . | . . . Spaces Dug . | . . . Terrain Destroyed . | . . . Melee . | . . . Projectile . | . . . AOE . | . . . Terrain Rammed . | . . . Walls Destroyed . | . . . Machines Disabled . | . . . Actions | -11 -10 -9 --------- Run | Yrd Mat Mat Total 267 | 5 103 159 Wait 19 | . . 19 Move 239 | . 99 140 Hop . | . . . Pick Up . | . . . Fast Attach 2 | . 2 . Attach 1 | 1 . . Detach . | . . . Swap . | . . . Drop 4 | 4 . . Fire . | . . . Melee . | . . . Ram . | . . . Kick . | . . . Crush 2 | . 2 . Escape Stasis . | . . . Rewire . | . . . Trap . | . . . Miscellaneous . | . . . Route ------- -11/Scrapyard -10/Materials -9/Materials (discovered 3 exits: Mat x3) History --------- Turn | Location | Event 1 | -11/Scrapyard | Released all parts (6) 5 | -11/Scrapyard | Discovered new exit (range 0) 5 | -11/Scrapyard | Entered Materials 46 | -10/Materials | Discovered new exit (range 12) 69 | -10/Materials | Entered another Materials area 69 | -9/Materials | Evolved 2 slots: Propulsion x1, Utility x1 112 | -9/Materials | Identified exit to Materials 159 | -9/Materials | Self-destructed Last Messages --------------- 00073_ Connecting with Terminal... 00073_ Current location identified: Materials >>Trojan(Assimilate) Trojan loaded successfully. Testing... System interface override in place. 00075_ O-16 Technician: "IFF HANDSHAKE FAILED. SECURING TERMINAL." 00082_ O-16 Technician accesses terminal... 00082_ O-16 Technician IFF database reprogrammed. 00083_ Technician 2a reveals location of Alarm Trap. 00102_ ALERT: Alarm triggered, dispatching investigation squad. 00112_ Connecting with Terminal... >>Access(Main) Found 3 level access points to Materials: (87,22) (19,8) (14,84) Map updated. 00113_ K-01 Serf collects debris. 00151_ Acquired 29 matter. Map ----- +----------------------------------------------------+ | ?????????????????????????????????????????????????? | | ?????????????????????????????????????????????????? | | ?????????????????????????????????????????????????? | | ?????????????????????????????????????????????????? | | ?????????????????????????????????????????????????? | | ?????????????????????????????????????????????????? | | ?????????????????????????????????????????????????? | | ?????????????????????????????????????????????????? | | ?????????????????????????????????????????????????? | | ?????????????????????????????? ??????????????????? | | ?????????????????????????????? ??????????????????? | | ????????????????????????###### ??????????????????? | | ????????????????????????? ??????????????????? | | ????????????????????????? ??????????????????? | | ????????????????????????? ???????????????????? | | ????????????????????????"" ???????????????????? | | ?????????????????????""""" / ???????????????????? | | ?????????????????????""""" %=#?????????????####### | | ??????????????????????"""" #?????????????# | | ???????????????????????""" #?????????????# """ | | ???????????????????????? #?????????????# """ | | ????????????????????????? #?????????????# """ | | ???????????????########### g #?????????????# | | ???????????????# #g!!#?#######??????? | | ???????????????# #g |#?# ##########+## | | ???????????????# """ """ @!==### T | | ???????????????# """ """Y# w "" | | ???????????????# """ """ # ##### gg | | ???????????????# # #???# ############# | | ???????????????# # #???###+###???????????? | | ???????????????# # #?????????????????????? | | ???????????????######## ## #?????????????????????? | | ??????????????????????#### #?????????????????????? | | ?????????????????????????# #?????????????????????? | | ?????????????????????????# #?????????????????????? | | ?????????????????????????? ??????????????????????? | | ?????????????????????????? ??????????????????????? | | ?????????????????????????? ??????????????????????? | | ?????????????????????????? ??????????????????????? | | ??????????????????????????#??????????????????????? | | ?????????????????????????????????????????????????? | | ?????????????????????????????????????????????????? | | ?????????????????????????????????????????????????? | | ?????????????????????????????????????????????????? | | | | | | | | | | | | | +----------------------------------------------------+ Best States ------------- Heat Dissipation 28 Energy Generation 5 Energy Capacity 100 Matter Stores 275 Matter Capacity 300 Sight Range 18 Terrain Scan Density 10 Evasion (%) 50 Recoil Reduction 1 Item Schematics ----------------- None Robot Schematics ------------------ None Fabricated ------------ Nothing Repaired ---------- Nothing Alien Tech Used ----------------- None Achievements -------------- None Challenges ------------ None Game ------ Seed ConstructPortableCharge Manual? 0 Play Time 00:03:08 Cumulative 533.1 hours Start 2025.06.11 @ 06:38:37 End 2025.06.11 @ 06:40:31 Sessions 1 Manual Loads 0 Difficulty Rogue Special Mode None Game No. 632 Rogue 632 Adventurer 0 Explorer 0 Win Type - Total 19 Types 13/0/5/1/0/0/0/0/0/0 Lore% 83 Gallery% 82 Achievement% 82 Wizard Run 0 Options --------- Layout 0 ASCII 0 Keyboard 0 Movement Numpad Keybinds 0 Fullscreen 1 Font 18/SmallcapsGlow Map View 76x50 Zoom Use 0% Tactical HUD 1 Map Filters NONE Filters NONE Steam 1 RUN: 08b491f0-6e62-4afe-827c-8f18993154b0